Cogmind - Beta 14 @@@ ROGUE MODE // 2024.10.29 @ 20:58:31 Player: SpaceWalrus Result: Destroyed by H-61 Shepherd with Heavy Assault Cannon Performance ------------- Evolutions (3) 1500 Regions Visited (6) 1200 Robots Destroyed (82) 410 Value Destroyed (2228) 2228 Prototype IDs (28) 560 Alien Tech Used (0) 0 Bonus (521) 521 TOTAL SCORE: 6419 Bonus ------- High Alert Combat Kills 221 Aligned with FarCom 300 Cogmind --------- Core Integrity 0/700 Matter 162/300 Energy 95/100 System Corruption 7% Temperature Cool (2) Movement Flying (35) Location -7/Factory Parts ------- > --- POWER (2) -------- (None) > --- PROPULSION (3) --- VTOL Module > --- UTILITY (5) ------ Advanced Heat Sink Advanced Terrain Scan Processor Hacking Suite > --- WEAPON (3) ------- (None) > --- INVENTORY (5) ---- Improved Carbon-fiber Leg Improved Shield Generator Hacking Suite Peak State ------------ > --- POWER ------------ Nuclear Core Light Angular Momentum Engine > --- PROPULSION ------- Carbon-fiber Leg Improved Carbon-fiber Leg Improved Carbon-fiber Leg > --- UTILITY ---------- Large Storage Unit Core Analyzer Kinecellerator Hacking Suite Trap Reconfigurator > --- WEAPON ----------- Flak Gun Gauss Cannon Rocket Launcher > --- INVENTORY -------- Nuclear Core Improved Carbon-fiber Leg Improved Heat Sink Improved Heat Sink Advanced Heat Sink Structural Scanner Improved Signal Interpreter Core Analyzer Particle Charger Hardlight Generator Hardlight Generator Hacking Suite Heavy Laser Rocket Launcher Datajack [Rating: 54] Favorites ----------- Power Nuclear Core Engine Ion Engine Power Core Nuclear Core Propulsion Aluminum Leg Leg Aluminum Leg Wheel Armored Huge Wheel Flight Unit VTOL Module Utility Hacking Suite Device Trap Reconfigurator Storage Medium Storage Unit Processor Core Analyzer Hackware Hacking Suite Weapon Assault Rifle Energy Gun Heavy Laser Energy Cannon Heavy Ion Cannon Ballistic Gun Assault Rifle Ballistic Cannon Gauss Cannon Launcher Rocket Launcher Build | -11 -10 -10 -10 -9 -8 -7 ------- Run | Yrd Mat Min Exi Min Mat Fac Slots Evolved 6 | . . . . . 4 2 Power 1 | . . . . . . 1 Propulsion 1 | . . . . . 1 . Utility 3 | . . . . . 3 . Weapon 1 | . . . . . . 1 Parts Attached 67 | 7 8 4 . . 18 30 Power 13 | 1 3 1 . . 2 6 Engine 7 | 1 3 1 . . . 2 Core 6 | . . . . . 2 4 Reactor . | . . . . . . . Propulsion 18 | 2 1 . . . 5 10 Treads . | . . . . . . . Leg 15 | 2 1 . . . 5 7 Wheel 1 | . . . . . . 1 Hover . | . . . . . . . Flight 2 | . . . . . . 2 Utility 18 | 2 2 2 . . 7 5 Device 11 | 1 . 2 . . 4 4 Storage 3 | 1 1 . . . 1 . Processor 3 | . 1 . . . 1 1 Hackware 1 | . . . . . 1 . Protection . | . . . . . . . Artifact . | . . . . . . . Weapon 18 | 2 2 1 . . 4 9 Energy Gun 3 | . . . . . 1 2 Energy Cannon 1 | . . . . . . 1 Ballistic Gun 6 | 2 1 1 . . . 2 Ballistic Cannon 4 | . 1 . . . 3 . Launcher 4 | . . . . . . 4 Special Weapon . | . . . . . . . Impact Weapon . | . . . . . . . Slashing Weapon . | . . . . . . . Piercing Weapon . | . . . . . . . Special Melee Weapon . | . . . . . . . Unidentified Prototypes 1 | . . . . . 1 . Parts Lost 19 | . . . . . 3 16 Power 3 | . . . . . . 3 Propulsion 9 | . . . . . 2 7 Utility 3 | . . . . . . 3 Weapon 4 | . . . . . 1 3 Highest Loss Streak 11 | . . . . . 1 11 To Critical Strikes . | . . . . . . . Average Slot Usage (%) 95 | . 100 99 100 100 94 90 Engine 7 | . 14 13 14 14 1 3 Core 5 | . . . . . 7 8 Leg 23 | . 28 28 28 28 22 19 Device 16 | . 6 13 14 14 20 19 Storage 10 | . 14 14 14 14 9 6 Processor 3 | . 7 . . . 6 2 Hackware 4 | . . . . . 9 7 Energy Gun 1 | . . . . . 1 2 Ballistic Gun 15 | . 26 28 28 28 4 8 Ballistic Cannon 3 | . 1 . . . 10 1 Launcher 1 | . . . . . . 5 Peak Build Rating 54 | 7 8 9 10 10 44 54 Average Rating 28 | 4 7 8 9 10 34 47 On Entrance 12 | . 7 8 9 10 10 41 Naked Turns . | . . . . . . . Heaviest Build 58 | 13 20 20 20 20 43 58 Greatest Support 51 | 20 20 20 20 20 51 51 Greatest Overweight (x) 3 | . . . . . 1 3 Average Overweight (x) . | . . . . . . . Largest Inventory Capacity 15 | 8 10 10 10 10 15 15 Average Capacity 11 | 7 9 10 10 10 11 14 Most Carried 15 | 5 9 9 9 10 15 15 Average Carried 10 | 2 6 6 8 9 11 13 Final Capacity 15 | 8 10 10 10 10 15 5 Final Carried 15 | 3 9 8 9 10 15 3 Class Distribution -------------------- 47% | Mutant 22% | Scavenger-Mutant 14% | Scavenger-Skirmisher 9% | Skirmisher 5% | Scavenger-Gunner Dominant Class ---------------- Mutant | -10/Materials Mutant | -10/Mines Mutant | -10/Exiles Mutant | -9/Mines Scavenger-Mutant | -8/Materials Skirmisher | -7/Factory Resources | -11 -10 -10 -10 -9 -8 -7 ----------- Run | Yrd Mat Min Exi Min Mat Fac Matter Collected 1969 | 288 233 124 . 72 355 897 Remotely . | . . . . . . . Salvage Created 2515 | 68 297 61 . 201 576 1312 Parts 178 | 6 35 . . 16 45 76 Haulers Intercepted 1 | . . . . . . 1 Recyclers Shooed 2 | . . . . . 1 1 Parts Field Recycled . | . . . . . . . Retrieved Matter . | . . . . . . . Parts Self-Destructed . | . . . . . . . Prevented . | . . . . . . . Kills | -11 -10 -10 -10 -9 -8 -7 ------- Run | Yrd Mat Min Exi Min Mat Fac Combat Hostiles Destroyed 50 | . 9 . . 4 11 26 Guns 23 | . 9 . . 4 3 7 Cannons 9 | . . . . . 7 2 AOE 16 | . . . . . 1 15 Classes Destroyed 14 | 2 5 . . . 4 3 Worker 6 | . . . . . 3 3 Builder 5 | . 1 . . . . 4 Tunneler 3 | 1 . . . 1 . 1 Hauler 1 | . . . . . . 1 Recycler 10 | 1 1 . . 1 2 5 Operator 1 | . 1 . . . . . Watcher 6 | . 2 . . . 1 3 Swarmer 22 | . 8 . . 4 . 10 Grunt 19 | . 1 . . . 7 11 Duelist 2 | . . . . . 1 1 Sentry 1 | . . . . . . 1 Specialist 2 | . . . . . 2 . Hunter 1 | . . . . . 1 . Programmer 3 | . . . . . . 3 Best Kill Streak 10 | 2 3 . . 4 4 10 Combat Bots Only 5 | . 3 . . 4 2 5 Max Kills in Single Turn 4 | 1 2 . . 1 2 4 Gunslinging . | . . . . . . . Exploded 3 | . . . . . 1 3 Melee . | . . . . . . . Uniques/NPCs Destroyed . | . . . . . . . Combat | -11 -10 -10 -10 -9 -8 -7 -------- Run | Yrd Mat Min Exi Min Mat Fac Hostile Shots Fired 424 | . 62 . . 17 91 254 Missed 159 | . 22 . . 2 31 104 Damage Taken 4173 | . 333 . . 110 1067 2663 Core 1047 | . 49 . . 16 272 710 Absorbed by Shields 132 | . . . . . . 132 Core Remaining (%) 74 | 100 . . . 74 50 . Volleys Fired 158 | 3 34 5 . 12 44 60 Largest 3 | 2 2 2 . 2 2 3 Hottest 173 | 40 55 40 . 40 117 173 Shots Fired 315 | 6 68 10 . 24 88 119 Gun 199 | 6 65 10 . 24 16 78 Cannon 91 | . 3 . . . 72 16 Launcher 25 | . . . . . . 25 Special . | . . . . . . . Kinetic 243 | 6 68 10 . 24 82 53 Thermal 47 | . . . . . 6 41 Explosive 25 | . . . . . . 25 Electromagnetic . | . . . . . . . Robot Hit Streak 13 | 2 4 10 . 11 13 11 Robot Miss Streak 17 | 1 5 1 . 1 5 17 Penetration Max 1 | . . . . . 1 1 Secondary Targets 1 | . 1 . . . . . Max Gunslinging Chain 1 | . 1 . . . . . Shots Hit Robots 166 | 3 29 8 . 18 36 72 Core Hits 136 | 3 17 2 . 9 25 80 Critical Kills 2 | . 1 . . . . 1 Critical Parts Destroyed . | . . . . . . . Critical Strikes 9 | . 1 . . . 7 1 Meltdown 1 | . . . . . . 1 Destroy 1 | . 1 . . . . . Blast 7 | . . . . . 7 . Melee Attacks . | . . . . . . . Impact . | . . . . . . . Slashing . | . . . . . . . Piercing . | . . . . . . . Sneak Attacks . | . . . . . . . Combat Hostiles . | . . . . . . . Follow-up Attacks . | . . . . . . . Damage Inflicted 6128 | 35 395 105 . 229 1213 4151 Guns 1932 | 35 378 105 . 229 136 1049 Cannons 1220 | . 17 . . . 949 254 Explosions 2964 | . . . . . 117 2847 Melee . | . . . . . . . Ramming 12 | . . . . . 11 1 Kinetic 2435 | 35 395 105 . 229 1008 663 Thermal 761 | . . . . . 77 684 Explosive 2908 | . . . . . 117 2791 Electromagnetic 12 | . . . . . . 12 Impact . | . . . . . . . Slashing . | . . . . . . . Piercing . | . . . . . . . Highest Corruption 7 | . . . . . . 7 Average Corruption 2 | . . . . . . 2 Corruption Purged . | . . . . . . . Corruption Blocked . | . . . . . . . Effects 17 | . . . . . . 17 Message Errors 5 | . . . . . . 5 Matter Fused 6 | . . . . . . 6 Heat Flow Errors 2 | . . . . . . 2 Energy Discharges 1 | . . . . . . 1 Data Loss (minor) 1 | . . . . . . 1 Misfires 1 | . . . . . . 1 Weapon Failures 1 | . . . . . . 1 Overload Shots . | . . . . . . . Overflow Damage 236 | . . . . . 13 223 Projectiles 18 | . . . . . 13 5 Explosions 218 | . . . . . . 218 Melee . | . . . . . . . Knockbacks 12 | . . . . . 11 1 Impact . | . . . . . . . Kinetic 10 | . . . . . 9 1 Secondary 2 | . . . . . 2 . Self-Inflicted Damage 315 | . . . . . 98 217 Shots 9 | . . . . . 1 8 Rammed . | . . . . . . . Targets Rammed 5 | . . . . . 4 1 Kicked 5 | . . . . . 4 1 Crushed . | . . . . . . . Highest Temperature 265 | . . . . . 207 265 Average Temperature 73 | . . . . . 80 66 Received Heat Transfer 768 | . 42 . . . 387 339 Siege Activations . | . . . . . . . Robots Corrupted . | . . . . . . . Combat Hostiles . | . . . . . . . Parts Fried . | . . . . . . . Impact Corruptions . | . . . . . . . Robots Melted 2 | . . . . . . 2 Combat Hostiles 2 | . . . . . . 2 Parts Melted 4 | . . . . . . 4 Heat Transferred 1235 | . . . . . 148 1087 Parts Sabotaged . | . . . . . . . Parts Stolen . | . . . . . . . Parts Stripped . | . . . . . . . Power Chain Reactions . | . . . . . . . Alert | -11 -10 -10 -10 -9 -8 -7 ------- Run | Yrd Mat Min Exi Min Mat Fac Peak Influence 769 | 10 226 68 . 110 378 769 Initial 103 | . 6 58 . . . 103 Average 230 | 5 108 62 . 86 128 426 Maximum Alert Level 3 | . 1 . . . 1 3 Low Security (%) 58 | 100 84 100 . 100 67 20 Level 1 21 | . 15 . . . 32 28 Level 2 12 | . . . . . . 31 Level 3 7 | . . . . . . 19 Level 4 . | . . . . . . . Level 5 . | . . . . . . . High Security . | . . . . . . . Max Security . | . . . . . . . Squads Dispatched 13 | . 1 . . . 3 9 Investigation . | . . . . . . . Extermination 3 | . . . . . . 3 Reinforcement 10 | . 1 . . . 3 6 Assault . | . . . . . . . Garrison . | . . . . . . . Intercept . | . . . . . . . Searches Triggered . | . . . . . . . Construction Impeded 5 | . . . . . 1 4 Haulers Reinforced . | . . . . . . . Active Scanning Responses . | . . . . . . . Cargo Convoy Interrupts 1 | . . . . . . 1 Stealth | -11 -10 -10 -10 -9 -8 -7 --------- Run | Yrd Mat Min Exi Min Mat Fac Distress Signals 4 | . 1 . . . 2 1 Communications Jammed . | . . . . . . . Distress Signals . | . . . . . . . Times Spotted 92 | . 20 . . 4 21 47 Peak Tracking Total 13 | . 4 . . 4 6 13 Tactical Retreats 5 | . 1 . . . 1 3 Traps | -11 -10 -10 -10 -9 -8 -7 ------- Run | Yrd Mat Min Exi Min Mat Fac Traps Triggered 1 | . . . . . . 1 Indirectly . | . . . . . . . Trap Hack Attempts . | . . . . . . . Triggered . | . . . . . . . Disarmed . | . . . . . . . Reprogrammed . | . . . . . . . Reused 5 | . . . . . . 5 Traps Reconfigurated 12 | . . . . . . 12 Traps Extracted . | . . . . . . . Installed . | . . . . . . . Triggered 5 | . . . . . . 5 Most Traps Carried 1 | . . . . 1 1 . Machines | -11 -10 -10 -10 -9 -8 -7 ---------- Run | Yrd Mat Min Exi Min Mat Fac Machines Disabled 18 | . . . . . 4 14 Max in Single Turn 8 | . . . . . 1 8 Garrison Access 1 | . . . . . 1 . Machines Repaired . | . . . . . . . Machines Dismantled . | . . . . . . . Machines Sabotaged . | . . . . . . . Overloaded Fab Kills . | . . . . . . . Hacking | -11 -10 -10 -10 -9 -8 -7 --------- Run | Yrd Mat Min Exi Min Mat Fac Machines Accessed 8 | . 2 1 1 . 4 . Terminals 6 | . 2 1 . . 3 . Fabricators . | . . . . . . . Repair Stations . | . . . . . . . Recycling Units . | . . . . . . . Scanalyzers . | . . . . . . . Garrison Access 1 | . . . . . 1 . Total Hacks 15 | . 3 1 1 . 10 . Successful 7 | . 2 . 1 . 4 . Failed 8 | . 1 1 . . 6 . Catastrophic 1 | . . . . . 1 . Database Lockouts . | . . . . . . . Manual 1 | . . . 1 . . . Terminals 9 | . 3 1 . . 5 . Fabricators . | . . . . . . . Repair Stations . | . . . . . . . Recycling Units . | . . . . . . . Scanalyzers . | . . . . . . . Garrison Access 5 | . . . . . 5 . Terminal Hacks 6 | . 2 . 1 . 3 . Record 1 | . . . . . 1 . Prototype ID Bank 2 | . 1 . . . 1 . Locate Traps 1 | . 1 . . . . . Zone Layout 1 | . . . . . 1 . Derelict Proto ID Bank 1 | . . . 1 . . . Fabricator Hacks . | . . . . . . . Repair Station Hacks . | . . . . . . . Recycling Unit Hacks . | . . . . . . . Scanalyzer . | . . . . . . . Garrison Access Hacks 1 | . . . . . 1 . Seal Access 1 | . . . . . 1 . Unauthorized Hacks . | . . . . . . . Terminals . | . . . . . . . Fabricators . | . . . . . . . Repair Stations . | . . . . . . . Recycling Units . | . . . . . . . Scanalyzers . | . . . . . . . Garrison Access . | . . . . . . . Data Cores Recovered . | . . . . . . . Used . | . . . . . . . Hacking Detections 5 | . 2 1 . . 2 . Full Trace Events . | . . . . . . . Feedback Events . | . . . . . . . Feedback Blocked . | . . . . . . . Robot Schematics Acquired . | . . . . . . . Robots Built . | . . . . . . . Authchips . | . . . . . . . Time . | . . . . . . . Total Robot Build Rating . | . . . . . . . Part Schematics Acquired . | . . . . . . . Parts Built . | . . . . . . . Authchips . | . . . . . . . Time . | . . . . . . . Total Part Build Rating . | . . . . . . . Parts Repaired . | . . . . . . . Time . | . . . . . . . Parts Recycled . | . . . . . . . Recycled Matter . | . . . . . . . Retrieved Matter . | . . . . . . . Retrieved Components . | . . . . . . . Parts Scanalyzed . | . . . . . . . Part Schematics Acquired . | . . . . . . . Parts Damaged . | . . . . . . . Bothacking | -11 -10 -10 -10 -9 -8 -7 ------------ Run | Yrd Mat Min Exi Min Mat Fac Used RIF Installer . | . . . . . . . Robots Hacked . | . . . . . . . Non-combat . | . . . . . . . Combat . | . . . . . . . Robot Hacks Applied . | . . . . . . . Relay Couplers Released . | . . . . . . . Fabnet Peak Effective % . | . . . . . . . Robots Rewired . | . . . . . . . Allies Hacked . | . . . . . . . Hacks Repelled . | . . . . . . . Allies | -11 -10 -10 -10 -9 -8 -7 -------- Run | Yrd Mat Min Exi Min Mat Fac Total Allies . | . . . . . . . Largest Group . | . . . . . . . Highest-Rated Group . | . . . . . . . Highest-Rated Ally . | . . . . . . . Total Orders . | . . . . . . . Ally Attacks . | . . . . . . . Total Damage . | . . . . . . . Kills . | . . . . . . . Allies Corrupted . | . . . . . . . Allies Melted . | . . . . . . . Intel | -11 -10 -10 -10 -9 -8 -7 ------- Run | Yrd Mat Min Exi Min Mat Fac Robot Analysis Total . | . . . . . . . Derelict Logs Recovered 1 | . . . . 1 . . Drone Launches . | . . . . . . . Drone Recoveries . | . . . . . . . Exploration | -11 -10 -10 -10 -9 -8 -7 ------------- Run | Yrd Mat Min Exi Min Mat Fac Turns Passed 3753 | 60 558 200 298 421 865 1351 Spaces Moved 2277 | 37 352 147 248 319 459 715 Core 14 | 12 . . . . . 2 Treads . | . . . . . . . Legs 2092 | 25 352 147 248 319 459 542 Wheels 43 | . . . . . . 43 Hover . | . . . . . . . Flight 128 | . . . . . . 128 Fastest Speed 32 | 50 120 120 120 120 120 32 Average Speed 134 | 97 120 120 120 120 146 149 Slowest Speed 330 | 120 120 120 120 120 190 330 Overloaded Moves . | . . . . . . . Propulsion Burnouts . | . . . . . . . Robots Hopped 1 | . . . . . . 1 Cave-ins Triggered . | . . . . . . . Exploration Rate (%) 39 | 5 36 32 61 72 43 24 Regions Visited 6 Branch Regions 3 Pre-discovered Areas . | . . . . . . . Known Exits Taken 2 | . 1 . . . 1 . Unknown Exits Taken 4 | 1 . 1 1 1 . . Scrap Searched 1 | . . 1 . . . . Spaces Dug . | . . . . . . . Terrain Destroyed 220 | . . . . . 65 155 Melee . | . . . . . . . Projectile 30 | . . . . . 28 2 AOE 190 | . . . . . 37 153 Terrain Rammed . | . . . . . . . Walls Destroyed . | . . . . . . . Machines Disabled . | . . . . . . . Actions | -11 -10 -10 -10 -9 -8 -7 --------- Run | Yrd Mat Min Exi Min Mat Fac Total 2676 | 53 418 162 248 333 572 890 Wait 51 | . 11 . . . 9 31 Move 2269 | 36 351 146 247 318 458 713 Hop 1 | . . . . . . 1 Pick Up 72 | 7 10 2 1 2 21 29 Fast Attach 9 | 3 . . . . 3 3 Attach 38 | 4 2 4 . . 7 21 Detach 3 | . . 1 . . 1 1 Swap 20 | . 6 . . . 8 6 Drop 49 | . 4 3 . 1 17 24 Fire 158 | 3 34 5 . 12 44 60 Melee . | . . . . . . . Ram . | . . . . . . . Kick 5 | . . . . . 4 1 Crush . | . . . . . . . Escape Stasis . | . . . . . . . Rewire 1 | . . 1 . . . . Trap . | . . . . . . . Miscellaneous . | . . . . . . . Route ------- -11/Scrapyard -10/Materials (discovered 2 exits: *Mat / *Min) -10/Mines -10/Exiles -9/Mines -8/Materials (discovered 2 exits: *Fac x2) -7/Factory (discovered 1 exit: [*Sto]) History --------- Turn | Location | Event 28 | -11/Scrapyard | Discovered new exit (range 16) 61 | -11/Scrapyard | Entered Materials 252 | -10/Materials | Discovered new exit (range 3) 302 | -10/Materials | Build established: Mutant 323 | -10/Materials | Identified exit to Materials 545 | -10/Materials | Discovered new exit (range 8) 617 | -10/Materials | Identified exit to Mines 619 | -10/Materials | Entered Mines 680 | -10/Mines | Received a Rocket Launcher from a helpful Derelict 766 | -10/Mines | Found a damaged Exp. Sensor Array with a note attached 768 | -10/Mines | Found Prototype Device 814 | -10/Mines | Deemed a non-threat by the Exiles lab entrance 814 | -10/Mines | Discovered new exit (range 5) 819 | -10/Mines | Entered Exiles 847 | -10/Exiles | Met 8R-AWN 869 | -10/Exiles | Met EX-HEX 909 | -10/Exiles | Met EX-BIN 924 | -10/Exiles | Aligned with FarCom system 925 | -10/Exiles | Given EX-Vault access code 987 | -10/Exiles | Opened EX-Vault 992 | -10/Exiles | Found Trap Reconfigurator 1017 | -10/Exiles | Warned to stay clear of 0b10 Research branches 1059 | -10/Exiles | Met EX-DEC 1100 | -10/Exiles | Discovered new exit (range 15) 1117 | -10/Exiles | Left Exiles lab with Trap Reconfigurator 1117 | -10/Exiles | Entered Mines 1178 | -9/Mines | Found a hidden stash of uninstalled traps 1184 | -9/Mines | Learned 4 Materials zone layouts 1526 | -9/Mines | Discovered new exit (range 10) 1538 | -9/Mines | Entered Materials 1538 | -8/Materials | Evolved 4 slots: Propulsion x1, Utility x3 1539 | -8/Materials | Identified exit to Factory 1540 | -8/Materials | Identified Exp. Sensor Array 2374 | -8/Materials | Discovered exit to Factory (range 6) 2378 | -8/Materials | Build established: Scavenger-Mutant 2403 | -8/Materials | Entered Factory 2403 | -7/Factory | Evolved 2 slots: Power x1, Weapon x1 3281 | -7/Factory | Build established: Skirmisher 3512 | -7/Factory | Lost 3 parts (1p2n) 3680 | -7/Factory | Cargo convoy interrupted 3689 | -7/Factory | Core integrity fell below 50% 3704 | -7/Factory | Core integrity fell below 20% 3741 | -7/Factory | Lost 11 parts (2p4n2u3w) 3752 | -7/Factory | Discovered new exit (range 7) 3754 | -7/Factory | Destroyed by H-61 Shepherd with Heavy Assault Cannon Last Messages --------------- P-60 Hacker resets A-27 Freighter, system corruption cleaned. U-05 Engineer lays Concrete. Acquired VTOL Module. U-05 Engineer builds a Wall. R-06 Scavenger collects Aluminum Leg. Slug penetrates Wall. U-05 Engineer lays Concrete. P-60 Hacker resets I-36 Angel, system corruption cleaned. R-06 Scavenger collects Arm. Huge Wheel. VTOL Module destroyed. System corrupted: Energy discharge (-29). ALERT: Suspicious intruders detected, dispatching Cutter reinforcements to area. Acquired Imp. Carbon-fiber Leg. Acquired Imp. Shield Generator. Acquired Adv. Terrain Scan Processor. EXIT=FOUND Penetrated by Slug. Map ----- +----------------------------------------------------+ | ?????????????????????????????????????????????????? | | ?????????????????????????????????????????????????? | | ?????????????????????????????????????????????????? | | ?????????????????????????????????????????????????? | | ?????????????????????????????????????????????????? | | ?????????????????????????????????????????????????? | | ?????????????????????????????????????????????????? | | ?????????????????????????????????????????????????? | | ?????????????????????????????????????????????????? | | ?????????????????????????????????????????????????? | | ?????????????????????????????????????????????????? | | ?????????????????????????????????????????????????? | | ?????????????????????????????????????????????????? | | ?????????????????????????????????????????????????? | | ?????????????????????????????????????????????????? | | ?????????????????????????????????????????????????? | | ?????????????????????????????????????????????????? | | ?????????????????????????????????????????????????? | | ?????????????????????????????????????????????????? | | ?????????????????????????????????????????????????? | | ?????????????????????????????????????????????????? | | ?????????????????????????????????????????????????? | | ?????????????????????????????????????????????????? | | ??????????????????????#######????????????????????? | | ??????????? ########## #????????????????????? | | ?????????? @ %#????????????????????? | | ?????????? H #????????????????????? | | ?????????? #????????????????????? | | ??????????? ###+####### #????????????????????? | | ??????????????????????## ##########????????????? | | ???????????????????????# # #????????????? | | ?????????????????????### + """ #????????????? | | ?????????????????????+ # """"" #????????????? | | ?????????????????????### # """"" #????????????? | | ???????????????????????# ## pp #????????????? | | ???????????????????????# ## """ #????????????? | | ??????????????????????? ## """"" ######???????? | | ??????????????????????###;## """"" + #???????? | | ????????????????????????#### #### #???????? | | ???????????????????????????##########??# #???????? | | ??????????????????????????????##########+########? | | ?????????????????????????????? # #? | | ?????????????????????????????? # """" """" #? | | ??????????????????????????????] # """" """" !#? | | ??????????????????????????????= # """" """" #? | | ?????????????????????????????? # """" """" #? | | ??????????????????????????? # #? | | ????????????????????????????""" # """" """" #? | | ????????????????????????????""" # """" """" #? | | ?????????????????????????????"" ?# """" """" #? | +----------------------------------------------------+ Best States ------------- Heat Dissipation 53 Energy Generation 27 Energy Capacity 380 Matter Stores 300 Matter Capacity 300 Sight Range 16 Terrain Scan Range 16 Terrain Scan Density 10 Evasion (%) 63 Core Analysis 6 Particle Charging 15 Kinecelleration 30 Offensive Hacking 10 Item Schematics ----------------- None Robot Schematics ------------------ None Fabricated ------------ Nothing Alien Tech Used ----------------- None Achievements -------------- None Challenges ------------ None Game ------ Seed AssemblyBackupSword Manual? 0 Play Time 00:40:10 Cumulative 41.2 hours Start 2024.10.29 @ 19:59:58 End 2024.10.29 @ 20:58:31 Sessions 1 Manual Loads 0 Difficulty Rogue Special Mode None Game No. 53 Rogue 53 Adventurer 0 Explorer 0 Win Type - Total 0 Types 0/0/0/0/0/0/0/0/0 Lore% 20 Gallery% 40 Achievement% 27 Wizard Run 0 Options --------- Layout 1 ASCII 0 Keyboard 0 Movement Numpad Keybinds 0 Fullscreen 1 Font 24/Smallcaps Map View 50x40 Zoom Use 0% Tactical HUD 0 Map Filters NONE Filters NONE Steam 1 RUN: ec140fa1-656f-40b1-8ae5-e8e881f68a74